{"text_format":"3","workbook":"xlsx","n_sheets":3,"sheets":["integrer incident","Feuil1","database"],"not_rendered":{"macros":1},"read":"whole","date_system":"1900"}

{"sheet":"integrer incident","index":0,"n_rows":2,"n_cols":8,"rows_kept":2}
["Numero d'incident","Date","Demandeur","Outil impacté","Description","Échéance souhaitée",null,"Texte"]
["2018-32",{"$f":"TODAY()","v":"2018-06-14"},"David BERNARD","Modification / évolution MAGH2","jkkjkkjj",null,null,"hihihiuihui"]

{"sheet":"Feuil1","index":1,"n_rows":0,"n_cols":0,"rows_kept":0}

{"sheet":"database","index":2,"n_rows":51,"n_cols":27,"rows_kept":51}
[{"$nulls":15},"on ne s'en sert pas ici",{"$nulls":9},"Aujourd'hui"]
[null,"User windows",{"$nulls":3},"Mail","@chu-toulouse.fr",null,"BERNARD.DA",{"$nulls":3},{"$f":"K6","v":"CAPA"},null,{"$f":"YEAR(TODAY())","v":2018},"année max","année actuelle",null,null,"nombre de marché",null,"Type de d'incident",{"$nulls":3},{"$f":"TODAY()","v":"2018-06-14"},{"$f":"CONCATENATE(\"demande \",CONCATENATE(DAY(TODAY()),MONTH(TODAY()),YEAR(TODAY())))","v":"demande 1462018"}]
[null,null,"LAMAMY","Julien","SERVICE GENERAUX - SERVICES",{"$f":"CONCATENATE(LOWER(C3),\".\",LOWER(LEFT(D3,1)),IF(ISERROR(LOWER(RIGHT(MID(D3,SEARCH(\"-\",D3),2),1))),\"\",LOWER(RIGHT(MID(D3,SEARCH(\"-\",D3),2),1))),$G$2)","v":"lamamy.j@chu-toulouse.fr"},null,"année de notification :",2018,{"$f":"IF(I3<2000,CONCATENATE(\"20\",I3),I3)","v":2018},null,null,"PHARMACIE - MEDIC",null,{"$f":"O2+1","v":2019},{"$f":"MAX(O:O)","v":2019},{"$f":"YEAR(TODAY())","v":2018},"SANS MINI SANS MAXI","EN ATTENTE",1]
[null,null,"RIVIERE","Ophelie","PHARMACIE - DM",{"$f":"CONCATENATE(LOWER(C4),\".\",LOWER(LEFT(D4,1)),IF(ISERROR(LOWER(RIGHT(MID(D4,SEARCH(\"-\",D4),2),1))),\"\",LOWER(RIGHT(MID(D4,SEARCH(\"-\",D4),2),1))),$G$2)","v":"riviere.o@chu-toulouse.fr"},null,null,259,{"$nulls":3},"PHARMACIE - DM",null,null,{"$f":"IF(AND(J3>=Q3,J3<=P3),\"ok\",\"année demandée pas bonne\")","v":"ok"},null,"EN ATTENTE",{"$nulls":3},"MAGH2"]
[null,"BERNARD.DA","BERNARD","David","CAPA","bernard.david@chu-toulouse.fr",null,null,2,{"$nulls":3},"BIOMEDICAL - ACQUISITION ",{"$nulls":8},"Fichier suivi marchés"]
[null,null,"TROUILLAS","Jean-Yves",null,{"$f":"CONCATENATE(LOWER(C6),\".\",LOWER(LEFT(D6,1)),IF(ISERROR(LOWER(RIGHT(MID(D6,SEARCH(\"-\",D6),2),1))),\"\",LOWER(RIGHT(MID(D6,SEARCH(\"-\",D6),2),1))),$G$2)","v":"trouillas.jy@chu-toulouse.fr"},null,"demandeur:",{"$f":"VLOOKUP(I2,B:F,3,FALSE)","v":"David"},{"$f":"IF(ISERROR(VLOOKUP(I2,B:F,2,FALSE)),I2,VLOOKUP(I2,B:F,2,FALSE))","v":"BERNARD"},{"$f":"IF(ISERROR(VLOOKUP(I2,B:F,4,FALSE)),\"\",VLOOKUP(I2,B:F,4,FALSE))","v":"CAPA"},{"$f":"VLOOKUP(LEFT(I2,SEARCH(\".\",I2,1)-1),A:B,2,FALSE)","v":{"$error":"#N/A"}},"BIOMEDICAL - MAINTENANCE ",{"$nulls":8},"Fichier demande numéro marché"]
[null,null,"LAFFARGUE","Marie-Paule",null,"laffargue.mp@chu-toulouse.fr",null,null,{"$f":"IF(ISERROR(CONCATENATE(I6,\" \",J6)),I2,CONCATENATE(I6,\" \",J6))","v":"David BERNARD"},{"$nulls":3},"BIOLOGIE",{"$nulls":8},"Autre fichier Excel"]
[null,null,"ROBERT","Jean-Baptiste",null,"robert.jb@chu-toulouse.fr",null,null,{"$f":"CONCATENATE(\"Voir \",I7)","v":"Voir David BERNARD"},{"$nulls":3},"INFORMATIQUE",{"$nulls":8},"Requêtes BO"]
[null,null,"FLEUREAU","Stephanie","TRAVAUX SERVICES TECHNIQUES ET PRESTATIONS","fleureau.s@chu-toulouse.fr",{"$nulls":6},"MOYENS GENERAUX - RESTAURATION ",{"$nulls":8},"Calife"]
[null,null,"ROUBAUD","Julie","MOYENS GENERAUX - EQUIPEMENT NON MEDICAUX","roubaud.j@chu-toulouse.fr",{"$nulls":6},"MOYENS GENERAUX - EQUIPEMENT NON MEDICAUX",{"$nulls":8},"Autre"]
[null,null,"COGNAT","Pierre-Jean",null,"cognat.pj@chu-toulouse.fr",null,"bernard.david@chu-toulouse.fr",{"$nulls":4},"MOYENS GENERAUX - FOURNITURES"]
[null,null,"FAY","Anne-Laure",null,{"$f":"CONCATENATE(LOWER(C12),\".\",LOWER(LEFT(D12,1)),$G$2)","v":"fay.a@chu-toulouse.fr"},{"$nulls":6},"SERVICE GENERAUX - SERVICES"]
[null,null,"BAALI","Sonia","TRAVAUX SERVICES TECHNIQUES ET PRESTATIONS",{"$f":"CONCATENATE(LOWER(C13),\".\",LOWER(LEFT(D13,1)),IF(ISERROR(LOWER(RIGHT(MID(D13,SEARCH(\"-\",D13),2),1))),\"\",LOWER(RIGHT(MID(D13,SEARCH(\"-\",D13),2),1))),$G$2)","v":"baali.s@chu-toulouse.fr"},null,"consultation:",{"$nulls":4},"SERVICES GENERAUX - TRANSPORTS VEHICULES"]
[null,null,"BAULU","Raphaele","MOYENS GENERAUX - EQUIPEMENT NON MEDICAUX","baulu.r@chu-toulouse.fr",null,null,{"$f":"VLOOKUP(I2,B:F,5,FALSE)","v":"bernard.david@chu-toulouse.fr"},{"$nulls":3},"CAMSP"]
[null,"CARAYON","CARAYON","Jessica","TRAVAUX SERVICES TECHNIQUES ET PRESTATIONS","carayon.j@chu-toulouse.fr",{"$nulls":6},"DIRECTION GENERALE "]
[null,"DAE-VAYSSIERES","LAFFON","Anne","CELLULE MARCHE","laffon.a@chu-toulouse.fr",null,"Procédure:","Appel d'offres",{"$nulls":3},"COMMUNICATION "]
[null,null,"VINSAC","Annie",null,"vinsac.a@chu-toulouse.fr",null,"Origine de la consultation : ","CHU de Toulouse",{"$nulls":3},"FORMATION"]
[null,null,"CERDAN","Julie","BIOMEDICAL - ACQUISITION","cerdan.j@chu-toulouse.fr",null,"on ne s'en sert pas ",{"$nulls":4},"TRAVAUX SERVICES TECHNIQUES ET PRESTATIONS"]
[null,null,"GAY","Martine",null,"gay.m@chu-toulouse.fr",{"$nulls":6},"AFFAIRES JURIDIQUES"]
[null,null,"BENBADIS","Akila",null,"benbadis.a@chu-toulouse.fr",{"$nulls":6},"RECHERCHE"]
[null,null,"PENABAYRE","Christophe",null,"penabayre.c@chu-toulouse.fr",{"$nulls":6},"EREMIP"]
[null,null,"ESTERMANN","Regine","PHARMACIE - DM","estermann.r@chu-toulouse.fr"]
[null,null,"BALLONARD","Carine",null,"ballonard.c@chu-toulouse.fr"]
[null,null,"FABRE","Angélique","INFORMATIQUE","fabre.a@chu-toulouse.fr"]
[null,null,"JOUGLA","Pascale","PHARMACIE - DM","jougla.p@chu-toulouse.fr"]
[null,null,"TAHRAOUI","Khadidja",null,"tahraoui.k@chu-toulouse.fr"]
[null,null,"DURAND","Pauline",null,"durand.p@chu-toulouse.fr"]
[null,null,"LIGNON","Bertrand","TRAVAUX SERVICES TECHNIQUES ET PRESTATIONS","lignon.b@chu-toulouse.fr"]
[null,null,"BENOIT","Aude","SERVICES GENERAUX - TRANSPORTS VEHICULES","benoit.a@chu-toulouse.fr"]
[null,null,"BOUBEE","Jean-Marc","INFORMATIQUE","boubee.jm@chu-toulouse.fr"]
[null,null,"MESTRE","Marion","RECHERCHE","mestre.m@chu-toulouse.fr"]
[null,null,"AREXIS","Annie","BIOMEDICAL - ACQUISITION","arexis.a@chu-toulouse.fr"]
[null,null,"COUBERES","Marie-Line",null,"couberes.ml@chu-toulouse.fr"]
[null,null,"NOVAK","Francoise","BIOMEDICAL - ACQUISITION","novak.f@chu-toulouse.fr"]
[null,null,"FRITZ","Lydia",null,"fritz.l@chu-toulouse.fr"]
[null,"BENAZET","BENAZET","Virginie","SERVICE GENERAUX - SERVICES","benazet.v@chu-toulouse.fr"]
[null,null,"RIBES","Laurence","MOYENS GENERAUX - FOURNITURES","ribes.l@chu-toulouse.fr"]
[null,null,"KETTENIS","Isabelle","INFORMATIQUE","kettenis.i@chu-toulouse.fr"]
[null,null,"ROUANET","Aurélie","PHARMACIE - MEDIC","rouanet.a@chu-toulouse.fr"]
[null,1887751,"HUOT","Delphine","MOYENS GENERAUX - RESTAURATION ","huot.d@chu-toulouse.fr"]
[null,null,"GUY","Laure","BIOLOGIE","guy.l@chu-toulouse.fr"]
[null,null,"CASTEL-MOLIERES","Marion","PHARMACIE - DM","castel-molieres.m@chu-toulouse.fr"]
[null,null,"DEGUI","Lise","PHARMACIE - MEDIC","degui.l@chu-toulouse.fr"]
[null,null,"JAMMES","Aline","PHARMACIE - MEDIC","jammes.a@chu-toulouse.fr"]
[null,null,"DARRAS","Audric","PHARMACIE - MEDIC","darras.a@chu-toulouse.fr"]
[null,null,"DOGNY","Benoit","BIOLOGIE","dogny.b@chu-toulouse.fr"]
[{"$nulls":4},"PHARMACIE - DM","pharmadm.achatinterne1@chu-toulouse.fr"]
[{"$nulls":4},"PHARMACIE - DM","pharmadm.achatinterne2@chu-toulouse.fr"]
[null,null,1887751,null,null,"huot.d@chu-toulouse.fr"]
[{"$nulls":5},{"$f":"CONCATENATE(LOWER(C50),\".\",LOWER(LEFT(D50,1)),IF(ISERROR(LOWER(RIGHT(MID(D50,SEARCH(\"-\",D50),2),1))),\"\",LOWER(RIGHT(MID(D50,SEARCH(\"-\",D50),2),1))),$G$2)","v":".@chu-toulouse.fr"}]
[{"$nulls":5},{"$f":"CONCATENATE(LOWER(C51),\".\",LOWER(LEFT(D51,1)),IF(ISERROR(LOWER(RIGHT(MID(D51,SEARCH(\"-\",D51),2),1))),\"\",LOWER(RIGHT(MID(D51,SEARCH(\"-\",D51),2),1))),$G$2)","v":".@chu-toulouse.fr"}]